Workbook

Sheet Инструкция
AA1: (требуется обновление)
B2: ="Код шаблона: " & GetCode() -> Код шаблона: FORM3.1.2020.ORG
B3: ="Версия " & GetVersion() -> Версия 1.0
B5: =Титульный!E5 -> Предложения сетевой компании по технологическому расходу электроэнергии (мощности) - потерям в электрических сетях (организация)
E7: • На рабочем месте должен быть установлен MS Office 2007 SP3, 2010, 2013, 2016 с полной версией MS Excel • Макросы во время работы должны быть включены (!) • Для корректной работы отчёта требуется выбрать низкий уровень безопасности (В меню MS Excel 2007/2010/2013/2016: Параметры Excel | Центр управления безопасностью | Параметры центра управления безопасностью | Параметры макросов | Включить все макросы | ОК)
E14: • Если Вы работаете в табличном процессоре MS Excel 2007 и выше, то можете использовать для работы формат XLSB (Двоичная книга Excel). При работе в формате XLSB заметно быстрее происходит сохранение файла, а также уменьшается размер по сравнению с форматами XLS и XLSM • Не рекомендуется снимать защиту с листов и каким-либо образом модифицировать защищаемые формулы и расчётные поля, в противном случае, отчёт будет отклонён системой • При сохранении не следует выбирать формат XLSX (Книга Excel), так как в указанном формате макросы, необходимые для работы отчёта, безвозвратно удаляются
E21: A | F21: - предназначенные для заполнения | O21: A | P21: - обязательные для заполнения
E22: A | F22: - с формулами и константами
E35: Выбор организации производится из Перечня сетевых организаций, который формируется ФАС России на основе Реестра регулируемых организаций. При отсутствии организации следует обратиться в регулирующий орган соответствующего субъекта РФ для проверки наличия/добавления в Реестр регулируемых организаций. Для добавления организации в Перечень сетевых организаций и/или корректировки информации необходимо обратиться к ответственным специалистам управления регулирования электроэнергетики ФАС России.
E46: • При сохранении шаблона осуществляется проверка корректности данных, в том числе на наличие значений в ячейках, обязательных для заполнения • Если какая-то ячейка не удовлетворяет условию проверки, на лист «Проверка» добавляется гиперссылка на данную ячейку и указывается причина ошибки • В колонке «Статус» для каждого сообщения возможны 2 значения: ошибка и предупреждение • При наличии сообщений со статусом «Ошибка» шаблон будет отклонён системой и не будет загружен в хранилище данных, сообщения со статусом «Предупреждение» носят информационный характер, и такой шаблон будет принят системой
E56: Консультации: | K56: Обратиться за помощью
E57: Дистрибутивы: | K57: Перейти
E75: Отчётные формы: | K75: Перейти к разделу
E77: Контакты специалистов ЦА ФАС России:
E78: ФИО: | K78: Пальянов Максим Николаевич
E79: E-mail: | K79: palyanovmn@fas.gov.ru
E88: При наличии подключения к Интернет, можно автоматически проверять наличие доступных обновлений. Выберите способ оповещения о наличии обновлений для отчёта:
F90: проверять доступные обновления (рекомендуется) | AA90: y
F92: никогда не проверять наличие обновлений (не рекомендуется)

Sheet Лог обновления (hidden)
A1: Дата/Время | B1: Сообщение | C1: Статус
A2: 2019-03-26T10:11:40 | B2: Проверка доступных обновлений... | C2: Информация
A3: 2019-03-26T10:11:42 | B3: Нет доступных обновлений для отчёта с кодом FORM3.1.2020.ORG! | C3: Информация
A4: 2019-03-26T10:14:06 | B4: Проверка доступных обновлений... | C4: Информация
A5: 2019-03-26T10:14:07 | B5: Нет доступных обновлений для отчёта с кодом FORM3.1.2020.ORG! | C5: Информация
A6: 2019-03-26T10:14:28 | B6: Проверка доступных обновлений... | C6: Информация
A7: 2019-03-26T10:14:29 | B7: Нет доступных обновлений для отчёта с кодом FORM3.1.2020.ORG! | C7: Информация
A8: 2019-03-26T11:40:27 | B8: Проверка доступных обновлений... | C8: Информация
A9: 2019-03-26T11:40:29 | B9: Нет доступных обновлений для отчёта с кодом FORM3.1.2020.ORG! | C9: Информация
A10: 2019-03-28T10:26:39 | B10: Проверка доступных обновлений... | C10: Информация
A11: 2019-03-28T10:26:41 | B11: Нет доступных обновлений для отчёта с кодом FORM3.1.2020.ORG! | C11: Информация
A12: 2019-03-29T09:32:40 | B12: Проверка доступных обновлений... | C12: Информация
A13: 2019-03-29T09:32:41 | B13: Нет доступных обновлений для отчёта с кодом FORM3.1.2020.ORG! | C13: Информация

Sheet Титульный
F4: =version -> Версия 1.0
E5: Предложения сетевой компании по технологическому расходу электроэнергии (мощности) - потерям в электрических сетях (организация)
E7: Субъект РФ | F7: Приморский край
E9: Период регулирования | F9: 2020
E11: По данным участника | F11: участник
E13: Наименование организации | F13: Хорольское муниципальное унитарное предприятие электрических сетей
E14: ИНН | F14: 2532002210
E15: КПП | F15: 253201001
E16: Год окончания учета в СПБ
F17: Адрес организации
E18: Юридический адрес | F18: 692254, Приморский край, Хорольский район, с. Хороль, ул. Кирова, 8
E19: Почтовый адрес | F19: 692254, Приморский край, Хорольский район, с. Хороль, ул. Кирова, 8
F20: Руководитель
E21: Фамилия, имя, отчество | F21: Савватеев Андрей Григорьевич
E22: Должность | F22: директор
F23: Главный бухгалтер
E24: Фамилия, имя, отчество | F24: Овчинникова Елена Михайловна
E25: Должность | F25: Главный бухгалтер
F26: Должностное лицо, ответственное за составление формы
E27: Фамилия, имя, отчество | F27: Куцев Алексей Анатольевич
E28: Должность | F28: главный инженер
E29: Контактный телефон | F29: (42347)23-4-23
E30: e-mail | F30: horolset1@mail.ru

Sheet Форма 3.1
B1: 0 | C1: 0 | D1: 0 | E1: =god -> 2020 | G1: Год | H1: Год | I1: Год | J1: Январь | K1: Февраль | L1: Март | M1: Апрель | N1: Май | O1: Июнь | P1: Июль | Q1: Август | R1: Сентябрь | S1: Октябрь | T1: Ноябрь | U1: Декабрь | V1: Год
G2: =$E$1-2 -> 2018 | H2: =$E$1-2 -> 2018 | I2: =$E$1-1 -> 2019 | J2: =$E$1 -> 2020 | K2: 2020 | L2: 2020 | M2: 2020 | N2: 2020 | O2: 2020 | P2: 2020 | Q2: 2020 | R2: 2020 | S2: 2020 | T2: 2020 | U2: 2020 | V2: 2020
G3: План | H3: Факт | I3: План | J3: План | K3: План | L3: План | M3: План | N3: План | O3: План | P3: План | Q3: План | R3: План | S3: План | T3: План | U3: План | V3: План
W7: Форма 3.1
D8: ="Предложения " & org & " по технологическому расходу электроэнергии (мощности) - потерям в электрических сетях на "& god &" год в регионе: "&region_name -> Предложения Хорольское муниципальное унитарное предприятие электрических сетей по технологическому расходу электроэнергии (мощности) - потерям в электрических сетях на 2020 год в регионе: Приморский край
D10: № п/п | E10: Наименование | F10: Ед. изм. | G10: =G3&" "&G2&" "&G1 -> План 2018 Год | H10: Факт 2018 Год | I10: План 2019 Год | J10: План 2020 Январь | K10: План 2020 Февраль | L10: План 2020 Март | M10: План 2020 Апрель | N10: План 2020 Май | O10: План 2020 Июнь | P10: План 2020 Июль | Q10: План 2020 Август | R10: План 2020 Сентябрь | S10: План 2020 Октябрь | T10: План 2020 Ноябрь | U10: План 2020 Декабрь | V10: План 2020 Год | W10: Комментарии
D11: 1 | E11: 2 | F11: 3 | G11: 4 | H11: 5 | I11: 6 | J11: 7 | K11: 8 | L11: 9 | M11: 10 | N11: 11 | O11: 12 | P11: 13 | Q11: 14 | R11: 15 | S11: 16 | T11: 17 | U11: 18 | V11: 19 | W11: 20
D12: Предложение участника
E13: Электроэнергия
A14: L1 | B14: Отпуск в сеть-энергия | D14: 1 | E14: Поступление в сеть | F14: млн.кВтч | G14: 46.51075 | H14: 45.831743 | I14: 46.9 | J14: 5.573539565 | K14: 5.032958156 | L14: 4.72287493 | M14: 3.770938328 | N14: 3.019556035 | O14: 2.607206028 | P14: 2.608200841 | Q14: 2.608399803 | R14: 2.609096173 | S14: 3.611370315 | T14: 4.815094099 | U14: 5.67748 | V14: =SUM(J14:U14) -> 46.65671427
A15: L2 | B15: Потери в электрической сети -энергия | D15: 2 | E15: Потери в электрической сети, в т.ч. относимые на: | F15: млн.кВтч | G15: =SUM(G16:G17) -> 4.635199 | H15: 4.1509 | I15: 4.6584 | J15: 0.5535956238 | K15: 0.4999020062 | L15: 0.469102778 | M15: 0.3745510248 | N15: 0.2999194654 | O15: 0.2589625193 | P15: 0.2590613298 | Q15: 0.2590810919 | R15: 0.2591502592 | S15: 0.358701823 | T15: 0.4782625099 | U15: 0.5639195785 | V15: =SUM(J15:U15) -> 4.63421001
A16: L2.1 | B16: собственное потребление | D16: 2.1 | E16: собственное потребление | F16: млн.кВтч | G16: 4.483199 | H16: 4.051283 | I16: 4.516834 | J16: 0.5367681442 | K16: 0.4847066353 | L16: 0.454843602 | M16: 0.36316591 | N16: 0.2908029036 | O16: 0.2510909135 | P16: 0.2511867205 | Q16: 0.2512058819 | R16: 0.2512729468 | S16: 0.3477984716 | T16: 0.4637249083 | U16: 0.5467782847 | V16: =SUM(J16:U16) -> 4.493345322
A17: L2.2 | B17: передачу сторонним потребителям (субабонентам) | D17: 2.2 | E17: передачу сторонним потребителям (субабонентам) | F17: млн.кВтч | G17: 0.152 | H17: 0.099617 | I17: 0.141566 | J17: 0.01682747959 | K17: 0.01519537085 | L17: 0.01425917598 | M17: 0.01138511479 | N17: 0.009116561739 | O17: 0.007871605774 | P17: 0.007874609287 | Q17: 0.007875209989 | R17: 0.007877312448 | S17: 0.01090335137 | T17: 0.0145376016 | U17: 0.01714129374 | V17: =SUM(J17:U17) -> 0.1408646872
A18: L3 | B18: Относительные потери-энергия | D18: 3 | E18: Относительные потери | F18: % | G18: =IF(G14=0,0,G15/G14*100) -> 9.965865956 | H18: 9.056823346 | I18: 9.932622601 | J18: 9.932568296 | K18: 9.932568296 | L18: 9.932568296 | M18: 9.932568296 | N18: 9.932568296 | O18: 9.932568296 | P18: 9.932568296 | Q18: 9.932568296 | R18: 9.932568296 | S18: 9.932568296 | T18: 9.932568296 | U18: 9.932568296 | V18: 9.932568296
A19: L4 | B19: Полезный отпуск-энергия | D19: 4 | E19: Отпуск из сети (полезный отпуск ), в т.ч. для | F19: млн.кВтч | G19: =G14-G15 -> 41.875551 | H19: 41.680843 | I19: 42.2416 | J19: 5.019943941 | K19: 4.53305615 | L19: 4.253772152 | M19: 3.396387303 | N19: 2.719636569 | O19: 2.348243508 | P19: 2.349139511 | Q19: 2.349318712 | R19: 2.349945913 | S19: 3.252668492 | T19: 4.336831589 | U19: 5.113560422 | V19: =SUM(J19:U19) -> 42.02250426
A20: L4.1 | B20: собственного потребления | D20: 4.1 | E20: собственного потребления | F20: млн.кВтч | G20: 40.503981 | H20: 40.68058 | I20: 40.957939 | J20: 4.887540474 | K20: 4.413494585 | L20: 4.141576839 | M20: 3.306805933 | N20: 2.64790483 | O20: 2.286307442 | P20: 2.287179812 | Q20: 2.287354286 | R20: 2.287964945 | S20: 3.166877776 | T20: 4.222445543 | U20: 4.978687774 | V20: =SUM(J20:U20) -> 40.91414024
A21: L4.2 | B21: передачи сторонним потребителям (субабонентам) | D21: 4.2 | E21: передачи сторонним потребителям (субабонентам) | F21: млн.кВтч | G21: 1.37082 | H21: 1.00025 | I21: 1.283686 | J21: 0.1324034651 | K21: 0.1195615626 | L21: 0.1121953112 | M21: 0.08958136847 | N21: 0.07173173844 | O21: 0.06193606566 | P21: 0.06195969816 | Q21: 0.06196442466 | R21: 0.06198096742 | S21: 0.08579071488 | T21: 0.1143860443 | U21: 0.1348726454 | V21: =SUM(J21:U21) -> 1.108364006
E22: Мощность
A23: L5 | B23: Отпуск в сеть-энергия | D23: 5 | E23: Поступление в сеть | F23: МВт | G23: 7.156 | H23: 7.05153 | I23: 7.192 | J23: 10.25670411 | K23: 9.261899375 | L23: 8.691268834 | M23: 6.939467855 | N23: 5.55673687 | O23: 4.797909923 | P23: 4.799740627 | Q23: 4.800106768 | R23: 4.801388261 | S23: 6.645822879 | T23: 8.860975126 | U23: 10.44798046 | V23: =SUM(J23:U23)/12 -> 7.155000091
A24: L6 | B24: Потери в электрической сети -энергия | D24: 6 | E24: Потери в электрической сети, в т.ч. относимые на: | F24: МВт | G24: =SUM(G25:G26) -> 0.7132 | H24: 0.6386 | I24: 0.7143 | J24: 1.018754141 | K24: 0.9199444809 | L24: 0.8632662127 | M24: 0.689267384 | N24: 0.5519266846 | O24: 0.4765556799 | P24: 0.4767375158 | Q24: 0.476773883 | R24: 0.4769011682 | S24: 0.6601008963 | T24: 0.880122406 | U24: 1.037752795 | V24: 0.7106752706
A25: L6.1 | B25: собственное потребление | D25: 6.1 | E25: собственное потребление | F25: МВт | G25: 0.6898 | H25: 0.6233 | I25: 0.6926 | J25: 0.9877873777 | K25: 0.8919812054 | L25: 0.8370257694 | M25: 0.6683159308 | N25: 0.5351499353 | O25: 0.4620699603 | P25: 0.462246269 | Q25: 0.4622815308 | R25: 0.4624049469 | S25: 0.640036008 | T25: 0.8533695901 | U25: 1.006208535 | V25: =SUM(J25:U25)/12 -> 0.6890730882
A26: L6.2 | B26: передачу сторонним потребителям (субабонентам) | D26: 6.2 | E26: передачу сторонним потребителям (субабонентам) | F26: МВт | G26: 0.0234 | H26: 0.0153 | I26: 0.0217 | J26: 0.03096676306 | K26: 0.02796327556 | L26: 0.0262404433 | M26: 0.02095145326 | N26: 0.01677674935 | O26: 0.0144857196 | P26: 0.01449124681 | Q26: 0.01449235225 | R26: 0.0144962213 | S26: 0.02006488831 | T26: 0.02675281593 | U26: 0.03154425942 | V26: =SUM(J26:U26)/12 -> 0.02160218235
A27: L7 | B27: Относительные потери-энергия | D27: 7 | E27: Относительные потери | F27: % | G27: =IF(G23=0,0,G24/G23*100) -> 9.96646171 | H27: 9.056190642 | I27: 9.931868743 | J27: 9.932568296 | K27: 9.932568296 | L27: 9.932568296 | M27: 9.932568296 | N27: 9.932568296 | O27: 9.932568296 | P27: 9.932568296 | Q27: 9.932568296 | R27: 9.932568296 | S27: 9.932568296 | T27: 9.932568296 | U27: 9.932568296 | V27: 9.932568296
A28: L8 | B28: Полезный отпуск-энергия | D28: 8 | E28: Отпуск из сети (полезный отпуск), в т.ч. для | F28: МВт | G28: =G23-G24 -> 6.4428 | H28: 6.41293 | I28: 6.4777 | J28: 9.23794997 | K28: 8.341954894 | L28: 7.828002621 | M28: 6.250200471 | N28: 5.004810185 | O28: 4.321354243 | P28: 4.323003111 | Q28: 4.323332885 | R28: 4.324487093 | S28: 5.985721983 | T28: 7.98085272 | U28: 9.410227664 | V28: =SUM(J28:U28)/12 -> 6.44432482
A29: L8.1 | B29: собственного потребления | D29: 8.1 | E29: собственного потребления | F29: МВт | G29: 6.2318 | H29: 6.259 | I29: 6.2808 | J29: 8.994294539 | K29: 8.12193177 | L29: 7.621535238 | M29: 6.085348388 | N29: 4.872805878 | O29: 4.20737642 | P29: 4.208981798 | Q29: 4.209302874 | R29: 4.210426639 | S29: 5.827845649 | T29: 7.770353841 | U29: 9.162028325 | V29: =SUM(J29:U29)/12 -> 6.274352613
A30: L8.2 | B30: передачи сторонним потребителям (субабонентам) | D30: 8.2 | E30: передачи сторонним потребителям (субабонентам) | F30: МВт | G30: 0.2109 | H30: 0.1539 | I30: 0.1969 | J30: 0.2436554275 | K30: 0.2200231212 | L30: 0.2064673798 | M30: 0.16485208 | N30: 0.132004305 | O30: 0.1139778218 | P30: 0.1140213115 | Q30: 0.1140300094 | R30: 0.1140604522 | S30: 0.1578763312 | T30: 0.2104988756 | U30: 0.2481993355 | V30: =SUM(J30:U30)/12 -> 0.1699722042
A31: L9 | B31: Заявленная мощность потребителей | D31: 9 | E31: Заявленная мощность | F31: МВт | G31: =SUM(G32:G33) -> 7.157 | H31: 7.050809 | I31: 7.192 | J31: 7.4761 | K31: 7.4761 | L31: 7.4761 | M31: 7.4761 | N31: 7.4761 | O31: 7.4761 | P31: 6.8331 | Q31: 6.8331 | R31: 6.8331 | S31: 6.8331 | T31: 6.8331 | U31: 6.8331 | V31: 7.1546
A32: L9.1 | B32: собственное потребление | D32: 9.1 | E32: собственное потребление | F32: МВт | G32: 6.947 | H32: 6.8976 | I32: 6.982 | J32: 7.238 | K32: 7.238 | L32: 7.238 | M32: 7.238 | N32: 7.238 | O32: 7.238 | P32: 6.655 | Q32: 6.655 | R32: 6.655 | S32: 6.655 | T32: 6.655 | U32: 6.655 | V32: =SUM(J32:U32)/12 -> 6.9465
A33: L9.2 | B33: сторонних потребителей (субабонентов) | D33: 9.2 | E33: ="сторонних потребителей (субабонентов)"&IF(regionException_flag = 1, ", в т.ч.","") -> сторонних потребителей (субабонентов) | F33: МВт | G33: =Субабоненты!H13 -> 0.21 | H33: =Субабоненты!I13 -> 0.153209 | I33: =Субабоненты!J13 -> 0.21 | J33: =Субабоненты!K13 -> 0.2381 | K33: =Субабоненты!L13 -> 0.2381 | L33: =Субабоненты!M13 -> 0.2381 | M33: =Субабоненты!N13 -> 0.2381 | N33: =Субабоненты!O13 -> 0.2381 | O33: =Субабоненты!P13 -> 0.2381 | P33: =Субабоненты!Q13 -> 0.1781 | Q33: =Субабоненты!R13 -> 0.1781 | R33: =Субабоненты!S13 -> 0.1781 | S33: =Субабоненты!T13 -> 0.1781 | T33: =Субабоненты!U13 -> 0.1781 | U33: =Субабоненты!V13 -> 0.1781 | V33: =Субабоненты!W13 -> 0.2081
D35: Предложение регулятора
D36: 2 | E36: Потери электроэнергии в электрической сети | F36: млн.кВтч | V36: =SUM(J36:U36) -> 0
D37: 6 | E37: Потери мощности в электрической сети | F37: МВт | V37: =SUM(J37:U37)/12 -> 0
D38: Предложение ФАС России
D39: 2 | E39: Потери электроэнергии в электрической сети | F39: млн.кВтч | V39: =SUM(J39:U39) -> 0
D40: 6 | E40: Потери мощности в электрической сети | F40: МВт | V40: =SUM(J40:U40)/12 -> 0
D42: Руководитель организации
D44: Руководитель органа исполнительной власти субъекта Российской Федерации в области государственного регулирования тарифов

Sheet Форма 3.1 (кварталы)
B1: 0 | C1: 0 | D1: 0 | E1: =god -> 2020 | G1: Год | H1: Год | I1: Год | J1: Январь
G2: =$E$1-2 -> 2018 | H2: =$E$1-2 -> 2018 | I2: =$E$1-1 -> 2019 | J2: =$E$1 -> 2020
G3: План | H3: Факт | I3: План | J3: План
D8: ="Предложения " & org & " по технологическому расходу электроэнергии (мощности) - потерям в электрических сетях на "& god &" год в регионе: "&region_name & " (поквартально)" -> Предложения Хорольское муниципальное унитарное предприятие электрических сетей по технологическому расходу электроэнергии (мощности) - потерям в электрических сетях на 2020 год в регионе: Приморский край (поквартально)
D10: № п/п | E10: Наименование | F10: Ед. изм. | G10: ="I квартал " & god -> I квартал 2020 | H10: ="II квартал " & god -> II квартал 2020 | I10: ="III квартал " & god -> III квартал 2020 | J10: ="IV квартал " & god -> IV квартал 2020
D11: 1 | E11: 2 | F11: 3 | G11: 4 | H11: 5 | I11: 6 | J11: 7
D12: Предложение участника
E13: Электроэнергия
A14: L1 | B14: Отпуск в сеть-энергия | D14: 1 | E14: Поступление в сеть | F14: млн.кВтч | G14: =SUM('Форма 3.1'!J14:L14) -> 15.32937265 | H14: =SUM('Форма 3.1'!M14:O14) -> 9.39770039 | I14: =SUM('Форма 3.1'!P14:R14) -> 7.825696817 | J14: =SUM('Форма 3.1'!S14:U14) -> 14.10394441
A15: L2 | B15: Потери в электрической сети -энергия | D15: 2 | E15: Потери в электрической сети, в т.ч. относимые на: | F15: млн.кВтч | G15: =SUM('Форма 3.1'!J15:L15) -> 1.522600408 | H15: =SUM('Форма 3.1'!M15:O15) -> 0.9334330095 | I15: =SUM('Форма 3.1'!P15:R15) -> 0.7772926809 | J15: =SUM('Форма 3.1'!S15:U15) -> 1.400883911
A16: L2.1 | B16: собственное потребление | D16: 2.1 | E16: собственное потребление | F16: млн.кВтч | G16: =SUM('Форма 3.1'!J16:L16) -> 1.476318381 | H16: =SUM('Форма 3.1'!M16:O16) -> 0.9050597272 | I16: =SUM('Форма 3.1'!P16:R16) -> 0.7536655492 | J16: =SUM('Форма 3.1'!S16:U16) -> 1.358301665
A17: L2.2 | B17: передачу сторонним потребителям (субабонентам) | D17: 2.2 | E17: передачу сторонним потребителям (субабонентам) | F17: млн.кВтч | G17: =SUM('Форма 3.1'!J17:L17) -> 0.04628202642 | H17: =SUM('Форма 3.1'!M17:O17) -> 0.02837328231 | I17: =SUM('Форма 3.1'!P17:R17) -> 0.02362713172 | J17: =SUM('Форма 3.1'!S17:U17) -> 0.04258224671
A18: L3 | B18: Относительные потери-энергия | D18: 3 | E18: Относительные потери | F18: % | G18: =IF(G14=0,0,G15/G14*100) -> 9.932568296 | H18: =IF(H14=0,0,H15/H14*100) -> 9.932568296 | I18: =IF(I14=0,0,I15/I14*100) -> 9.932568296 | J18: =IF(J14=0,0,J15/J14*100) -> 9.932568296
A19: L4 | B19: Полезный отпуск-энергия | D19: 4 | E19: Отпуск из сети (полезный отпуск ), в т.ч. для | F19: млн.кВтч | G19: =SUM('Форма 3.1'!J19:L19) -> 13.80677224 | H19: =SUM('Форма 3.1'!M19:O19) -> 8.464267381 | I19: =SUM('Форма 3.1'!P19:R19) -> 7.048404136 | J19: =SUM('Форма 3.1'!S19:U19) -> 12.7030605
A20: L4.1 | B20: собственного потребления | D20: 4.1 | E20: собственного потребления | F20: млн.кВтч | G20: =SUM('Форма 3.1'!J20:L20) -> 13.4426119 | H20: =SUM('Форма 3.1'!M20:O20) -> 8.241018205 | I20: =SUM('Форма 3.1'!P20:R20) -> 6.862499043 | J20: =SUM('Форма 3.1'!S20:U20) -> 12.36801109
A21: L4.2 | B21: передачи сторонним потребителям (субабонентам) | D21: 4.2 | E21: передачи сторонним потребителям (субабонентам) | F21: млн.кВтч | G21: =SUM('Форма 3.1'!J21:L21) -> 0.364160339 | H21: =SUM('Форма 3.1'!M21:O21) -> 0.2232491726 | I21: =SUM('Форма 3.1'!P21:R21) -> 0.1859050902 | J21: =SUM('Форма 3.1'!S21:U21) -> 0.3350494046
E22: Мощность
A23: L5 | B23: Отпуск в сеть-энергия | D23: 5 | E23: Поступление в сеть | F23: МВт | G23: =SUM('Форма 3.1'!J23:L23)/3 -> 9.403290773 | H23: =SUM('Форма 3.1'!M23:O23)/3 -> 5.764704883 | I23: =SUM('Форма 3.1'!P23:R23)/3 -> 4.800411886 | J23: =SUM('Форма 3.1'!S23:U23)/3 -> 8.651592821
A24: L6 | B24: Потери в электрической сети -энергия | D24: 6 | E24: Потери в электрической сети, в т.ч. относимые на: | F24: МВт | G24: =SUM('Форма 3.1'!J24:L24)/3 -> 0.9339882781 | H24: =SUM('Форма 3.1'!M24:O24)/3 -> 0.5725832495 | I24: =SUM('Форма 3.1'!P24:R24)/3 -> 0.476804189 | J24: =SUM('Форма 3.1'!S24:U24)/3 -> 0.8593253656
A25: L6.1 | B25: собственное потребление | D25: 6.1 | E25: собственное потребление | F25: МВт | G25: =SUM('Форма 3.1'!J25:L25)/3 -> 0.9055981175 | H25: =SUM('Форма 3.1'!M25:O25)/3 -> 0.5551786088 | I25: =SUM('Форма 3.1'!P25:R25)/3 -> 0.4623109156 | J25: =SUM('Форма 3.1'!S25:U25)/3 -> 0.8332047111
A26: L6.2 | B26: передачу сторонним потребителям (субабонентам) | D26: 6.2 | E26: передачу сторонним потребителям (субабонентам) | F26: МВт | G26: =SUM('Форма 3.1'!J26:L26)/3 -> 0.02839016064 | H26: =SUM('Форма 3.1'!M26:O26)/3 -> 0.01740464074 | I26: =SUM('Форма 3.1'!P26:R26)/3 -> 0.01449327346 | J26: =SUM('Форма 3.1'!S26:U26)/3 -> 0.02612065456
A27: L7 | B27: Относительные потери-энергия | D27: 7 | E27: Относительные потери | F27: % | G27: =IF(G23=0,0,G24/G23*100) -> 9.932568296 | H27: =IF(H23=0,0,H24/H23*100) -> 9.932568296 | I27: =IF(I23=0,0,I24/I23*100) -> 9.932568296 | J27: =IF(J23=0,0,J24/J23*100) -> 9.932568296
A28: L8 | B28: Полезный отпуск-энергия | D28: 8 | E28: Отпуск из сети (полезный отпуск), в т.ч. для | F28: МВт | G28: =SUM('Форма 3.1'!J28:L28)/3 -> 8.469302495 | H28: =SUM('Форма 3.1'!M28:O28)/3 -> 5.192121633 | I28: =SUM('Форма 3.1'!P28:R28)/3 -> 4.323607697 | J28: =SUM('Форма 3.1'!S28:U28)/3 -> 7.792267456
A29: L8.1 | B29: собственного потребления | D29: 8.1 | E29: собственного потребления | F29: МВт | G29: =SUM('Форма 3.1'!J29:L29)/3 -> 8.245920516 | H29: =SUM('Форма 3.1'!M29:O29)/3 -> 5.055176895 | I29: =SUM('Форма 3.1'!P29:R29)/3 -> 4.209570437 | J29: =SUM('Форма 3.1'!S29:U29)/3 -> 7.586742605
A30: L8.2 | B30: передачи сторонним потребителям (субабонентам) | D30: 8.2 | E30: передачи сторонним потребителям (субабонентам) | F30: МВт | G30: =SUM('Форма 3.1'!J30:L30)/3 -> 0.2233819762 | H30: =SUM('Форма 3.1'!M30:O30)/3 -> 0.1369447356 | I30: =SUM('Форма 3.1'!P30:R30)/3 -> 0.1140372577 | J30: =SUM('Форма 3.1'!S30:U30)/3 -> 0.2055248474
A31: L9 | B31: Заявленная мощность потребителей | D31: 9 | E31: Заявленная мощность | F31: МВт | G31: =SUM('Форма 3.1'!J31:L31)/3 -> 7.4761 | H31: =SUM('Форма 3.1'!M31:O31)/3 -> 7.4761 | I31: =SUM('Форма 3.1'!P31:R31)/3 -> 6.8331 | J31: =SUM('Форма 3.1'!S31:U31)/3 -> 6.8331
A32: L9.1 | B32: собственное потребление | D32: 9.1 | E32: собственное потребление | F32: МВт | G32: =SUM('Форма 3.1'!J32:L32)/3 -> 7.238 | H32: =SUM('Форма 3.1'!M32:O32)/3 -> 7.238 | I32: =SUM('Форма 3.1'!P32:R32)/3 -> 6.655 | J32: =SUM('Форма 3.1'!S32:U32)/3 -> 6.655
A33: L9.2 | B33: сторонних потребителей (субабонентов) | D33: 9.2 | E33: ="сторонних потребителей (субабонентов)"&IF(regionException_flag = 1, ", в т.ч.","") -> сторонних потребителей (субабонентов) | F33: МВт | G33: =SUM('Форма 3.1'!J33:L33)/3 -> 0.2381 | H33: =SUM('Форма 3.1'!M33:O33)/3 -> 0.2381 | I33: =SUM('Форма 3.1'!P33:R33)/3 -> 0.1781 | J33: =SUM('Форма 3.1'!S33:U33)/3 -> 0.1781
D35: Предложение регулятора
D36: 2 | E36: Потери электроэнергии в электрической сети | F36: млн.кВтч | G36: =SUM('Форма 3.1'!J36:L36) -> 0 | H36: =SUM('Форма 3.1'!M36:O36) -> 0 | I36: =SUM('Форма 3.1'!P36:R36) -> 0 | J36: =SUM('Форма 3.1'!S36:U36) -> 0
D37: 6 | E37: Потери мощности в электрической сети | F37: МВт | G37: =SUM('Форма 3.1'!J37:L37)/3 -> 0 | H37: =SUM('Форма 3.1'!M37:O37)/3 -> 0 | I37: =SUM('Форма 3.1'!P37:R37)/3 -> 0 | J37: =SUM('Форма 3.1'!S37:U37)/3 -> 0
D38: Предложение ФАС России
D39: 2 | E39: Потери электроэнергии в электрической сети | F39: млн.кВтч | G39: =SUM('Форма 3.1'!J39:L39) -> 0 | H39: =SUM('Форма 3.1'!M39:O39) -> 0 | I39: =SUM('Форма 3.1'!P39:R39) -> 0 | J39: =SUM('Форма 3.1'!S39:U39) -> 0
D40: 6 | E40: Потери мощности в электрической сети | F40: МВт | G40: =SUM('Форма 3.1'!J40:L40)/3 -> 0 | H40: =SUM('Форма 3.1'!M40:O40)/3 -> 0 | I40: =SUM('Форма 3.1'!P40:R40)/3 -> 0 | J40: =SUM('Форма 3.1'!S40:U40)/3 -> 0
D42: Руководитель организации
D44: Руководитель органа исполнительной власти субъекта Российской Федерации в области государственного регулирования тарифов

Sheet Форма 16
C1: 0 | E1: 0 | F1: 0 | G1: =god -> 2020 | I1: Год | J1: Год | K1: Год | M1: Январь
I2: =G1-2 -> 2018 | J2: =G1-2 -> 2018 | K2: =G1-1 -> 2019 | M2: =$G$1 -> 2020
I3: План | J3: Факт | K3: План | M3: План
D9: ="Информация по нормативам потерь электрической энергии при передаче по электрическим сетям, утвержденным Минэнерго России по " &org& " на "&god&" год в регионе: "&region_name -> Информация по нормативам потерь электрической энергии при передаче по электрическим сетям, утвержденным Минэнерго России по Хорольское муниципальное унитарное предприятие электрических сетей на 2020 год в регионе: Приморский край
D10: ="Если в " & god-1 & " году организация не получала норматив, то укажите год, когда этот норматив был получен в последний раз." -> Если в 2019 году организация не получала норматив, то укажите год, когда этот норматив был получен в последний раз.
D11: 2019 | I11: =IF(god="","(Не определено)",god) -> 2020
D12: Отпуск э/энергии в сеть (млн.кВтч) | E12: Норматив потерь электроэнергии | G12: Приказ | I12: Отпуск э/энергии в сеть (млн.кВтч) | J12: Норматив потерь электроэнергии | L12: Приказ
E13: Абсол. величина (млн.кВтч) | F13: % | G13: Дата | H13: Номер | J13: Абсол. величина (млн.кВтч) | K13: % | L13: Дата | M13: Номер
D14: 1 | E14: 2 | F14: 3 | G14: 4 | H14: 5 | I14: 6 | J14: 7 | K14: 8 | L14: 9 | M14: 10

Sheet Субабоненты
C1: 0 | E1: 0 | F1: 0 | G1: =god -> 2020 | H1: Год | I1: Год | J1: Год | K1: Январь | L1: Февраль | M1: Март | N1: Апрель | O1: Май | P1: Июнь | Q1: Июль | R1: Август | S1: Сентябрь | T1: Октябрь | U1: Ноябрь | V1: Декабрь | W1: Год
H2: =G1-2 -> 2018 | I2: =G1-2 -> 2018 | J2: =G1-1 -> 2019 | K2: =$G$1 -> 2020 | L2: 2020 | M2: 2020 | N2: 2020 | O2: 2020 | P2: 2020 | Q2: 2020 | R2: 2020 | S2: 2020 | T2: 2020 | U2: 2020 | V2: 2020 | W2: 2020
H3: План | I3: Факт | J3: План | K3: План | L3: План | M3: План | N3: План | O3: План | P3: План | Q3: План | R3: План | S3: План | T3: План | U3: План | V3: План | W3: План
W6: Форма 3.1
D9: ="Предложения " &org& " по технологическому расходу электроэнергии (мощности) - потерям в электрических сетях на "&god&" год в регионе: "&region_name -> Предложения Хорольское муниципальное унитарное предприятие электрических сетей по технологическому расходу электроэнергии (мощности) - потерям в электрических сетях на 2020 год в регионе: Приморский край
D11: № п/п | E11: Наименование организации | F11: Показатель | G11: Ед. изм. | H11: =H3&" "&H2&" "&H1 -> План 2018 Год | I11: Факт 2018 Год | J11: План 2019 Год | K11: План 2020 Январь | L11: План 2020 Февраль | M11: План 2020 Март | N11: План 2020 Апрель | O11: План 2020 Май | P11: План 2020 Июнь | Q11: План 2020 Июль | R11: План 2020 Август | S11: План 2020 Сентябрь | T11: План 2020 Октябрь | U11: План 2020 Ноябрь | V11: План 2020 Декабрь | W11: План 2020 Год
D12: 1 | E12: 2 | F12: 3 | G12: 4 | H12: 5 | I12: 6 | J12: 7 | K12: 8 | L12: 9 | M12: 10 | N12: 11 | O12: 12 | P12: 13 | Q12: 14 | R12: 15 | S12: 16 | T12: 17 | U12: 18 | V12: 19 | W12: 20
D13: Всего | F13: ="Заявленная мощность потребителей"&IF(regionException_flag = 1, ", в т.ч.","") -> Заявленная мощность потребителей | G13: МВт | H13: =SUMIF($F$15:$F$22,"="&$F13,H$15:H$22) -> 0.21 | I13: 0.153209 | J13: 0.21 | K13: 0.2381 | L13: 0.2381 | M13: 0.2381 | N13: 0.2381 | O13: 0.2381 | P13: 0.2381 | Q13: 0.1781 | R13: 0.1781 | S13: 0.1781 | T13: 0.1781 | U13: 0.1781 | V13: 0.1781 | W13: 0.2081
D15: 0
C16: О | D16: 1 | E16: АО "ДРСК" | F16: ="Заявленная мощность потребителей"&IF(regionException_flag = 1, ", в т.ч.","") -> Заявленная мощность потребителей | G16: МВт | H16: 0.149 | I16: 0.1087 | J16: 0.149 | K16: 0.165 | L16: 0.165 | M16: 0.165 | N16: 0.165 | O16: 0.165 | P16: 0.165 | Q16: 0.132 | R16: 0.132 | S16: 0.132 | T16: 0.132 | U16: 0.132 | V16: 0.132 | W16: =SUM(K16:V16)/12 -> 0.1485
C18: О | D18: 2 | E18: ОАО "РЖД" | F18: ="Заявленная мощность потребителей"&IF(regionException_flag = 1, ", в т.ч.","") -> Заявленная мощность потребителей | G18: МВт | H18: 0.001 | I18: 0.000729 | J18: 0.001 | K18: 0.0001 | L18: 0.0001 | M18: 0.0001 | N18: 0.0001 | O18: 0.0001 | P18: 0.0001 | Q18: 0.0001 | R18: 0.0001 | S18: 0.0001 | T18: 0.0001 | U18: 0.0001 | V18: 0.0001 | W18: =SUM(K18:V18)/12 -> 0.0001
C20: О | D20: 3 | E20: ОАО "Оборонэнерго" | F20: ="Заявленная мощность потребителей"&IF(regionException_flag = 1, ", в т.ч.","") -> Заявленная мощность потребителей | G20: МВт | H20: 0.06 | I20: 0.04378 | J20: 0.06 | K20: 0.073 | L20: 0.073 | M20: 0.073 | N20: 0.073 | O20: 0.073 | P20: 0.073 | Q20: 0.046 | R20: 0.046 | S20: 0.046 | T20: 0.046 | U20: 0.046 | V20: 0.046 | W20: =SUM(K20:V20)/12 -> 0.0595
E22: Добавить организацию

Sheet Субабоненты (кварталы)
C1: 0 | E1: 0 | F1: 0 | G1: =god -> 2020 | H1: Год | I1: Год | J1: Год | K1: Январь
H2: =G1-2 -> 2018 | I2: =G1-2 -> 2018 | J2: =G1-1 -> 2019 | K2: =$G$1 -> 2020
H3: План | I3: Факт | J3: План | K3: План
D9: ="Предложения " &org& " по технологическому расходу электроэнергии (мощности) - потерям в электрических сетях на "&god&" год в регионе: "&region_name & " (поквартально)" -> Предложения Хорольское муниципальное унитарное предприятие электрических сетей по технологическому расходу электроэнергии (мощности) - потерям в электрических сетях на 2020 год в регионе: Приморский край (поквартально)
D11: № п/п | E11: Наименование организации | F11: Показатель | G11: Ед. изм. | H11: ="I квартал " & god -> I квартал 2020 | I11: ="II квартал " & god -> II квартал 2020 | J11: ="III квартал " & god -> III квартал 2020 | K11: ="IV квартал " & god -> IV квартал 2020
D12: 1 | E12: 2 | F12: 3 | G12: 4 | H12: 5 | I12: 6 | J12: 7 | K12: 8
D13: Всего | F13: ="Заявленная мощность потребителей"&IF(regionException_flag = 1, ", в т.ч.","") -> Заявленная мощность потребителей | G13: МВт | H13: =SUMIF($F$15:$F$22,$F13,H$15:H$22) -> 0.2381 | I13: 0.2381 | J13: 0.1781 | K13: 0.1781
D15: 0
D16: =Субабоненты!$D$16 -> 1 | E16: =Субабоненты!$E$16 -> АО "ДРСК" | F16: ="Заявленная мощность потребителей"&IF(regionException_flag = 1, ", в т.ч.","") -> Заявленная мощность потребителей | G16: МВт | H16: =(Субабоненты!K16+Субабоненты!L16+Субабоненты!M16)/3 -> 0.165 | I16: =(Субабоненты!N16+Субабоненты!O16+Субабоненты!P16)/3 -> 0.165 | J16: =(Субабоненты!Q16+Субабоненты!R16+Субабоненты!S16)/3 -> 0.132 | K16: =(Субабоненты!T16+Субабоненты!U16+Субабоненты!V16)/3 -> 0.132
D18: =Субабоненты!$D$18 -> 2 | E18: =Субабоненты!$E$18 -> ОАО "РЖД" | F18: ="Заявленная мощность потребителей"&IF(regionException_flag = 1, ", в т.ч.","") -> Заявленная мощность потребителей | G18: МВт | H18: =(Субабоненты!K18+Субабоненты!L18+Субабоненты!M18)/3 -> 0.0001 | I18: =(Субабоненты!N18+Субабоненты!O18+Субабоненты!P18)/3 -> 0.0001 | J18: =(Субабоненты!Q18+Субабоненты!R18+Субабоненты!S18)/3 -> 0.0001 | K18: =(Субабоненты!T18+Субабоненты!U18+Субабоненты!V18)/3 -> 0.0001
D20: =Субабоненты!$D$20 -> 3 | E20: =Субабоненты!$E$20 -> ОАО "Оборонэнерго" | F20: ="Заявленная мощность потребителей"&IF(regionException_flag = 1, ", в т.ч.","") -> Заявленная мощность потребителей | G20: МВт | H20: =(Субабоненты!K20+Субабоненты!L20+Субабоненты!M20)/3 -> 0.073 | I20: =(Субабоненты!N20+Субабоненты!O20+Субабоненты!P20)/3 -> 0.073 | J20: =(Субабоненты!Q20+Субабоненты!R20+Субабоненты!S20)/3 -> 0.046 | K20: =(Субабоненты!T20+Субабоненты!U20+Субабоненты!V20)/3 -> 0.046

Sheet Комментарии
D7: Комментарии

Sheet Проверка
B2: Результат проверки
B4: Ссылка | C4: Причина | D4: Статус

Sheet TEHSHEET (hidden)
A1: REGION | B1: year_list | D1: regionException | E1: regionException_flag
A2: Алтайский край | B2: 2010 | D2: Забайкальский край | E2: 0
A3: Амурская область | B3: 2011 | D3: Республика Бурятия
A4: Архангельская область | B4: 2012
A5: Астраханская область | B5: 2013
A6: Белгородская область | B6: 2014
A7: Брянская область | B7: 2015
A8: Владимирская область | B8: 2016
A9: Волгоградская область | B9: 2017
A10: Вологодская область | B10: 2018
A11: Воронежская область | B11: 2019
A12: г.Байконур
A13: г. Москва
A14: г.Санкт-Петербург
A15: г.Севастополь
A16: Еврейская автономная область
A17: Забайкальский край
A18: Ивановская область
A19: Иркутская область
A20: Кабардино-Балкарская республика
A21: Калининградская область
A22: Калужская область
A23: Камчатский край
A24: Карачаево-Черкесская республика
A25: Кемеровская область
A26: Кировская область
A27: Костромская область
A28: Краснодарский край
A29: Красноярский край
A30: Курганская область
A31: Курская область
A32: Ленинградская область
A33: Липецкая область
A34: Магаданская область
A35: Московская область
A36: Мурманская область
A37: Ненецкий автономный округ
A38: Нижегородская область
A39: Новгородская область
A40: Новосибирская область
A41: Омская область
A42: Оренбургская область
A43: Орловская область
A44: Пензенская область
A45: Пермский край
A46: Приморский край
A47: Псковская область
A48: Республика Адыгея
A49: Республика Алтай
A50: Республика Башкортостан
A51: Республика Бурятия
A52: Республика Дагестан
A53: Республика Ингушетия
A54: Республика Калмыкия
A55: Республика Карелия
A56: Республика Коми
A57: Республика Крым
A58: Республика Марий Эл
A59: Республика Мордовия
A60: Республика Саха (Якутия)
A61: Республика Северная Осетия-Алания
A62: Республика Татарстан
A63: Республика Тыва
A64: Республика Хакасия
A65: Ростовская область
A66: Рязанская область
A67: Самарская область
A68: Саратовская область
A69: Сахалинская область
A70: Свердловская область
A71: Смоленская область
A72: Ставропольский край
A73: Тамбовская область
A74: Тверская область
A75: Томская область
A76: Тульская область
A77: Тюменская область
A78: Удмуртская республика
A79: Ульяновская область
A80: Хабаровский край
A81: Ханты-Мансийский автономный округ
A82: Челябинская область
A83: Чеченская республика
A84: Чувашская республика
A85: Чукотский автономный округ
A86: Ямало-Ненецкий автономный округ
A87: Ярославская область

Sheet AllSheetsInThisWorkbook (hidden)
A1: Расчетные листы | B1: Скрытые листы
A2: Инструкция | B2: TEHSHEET
A3: Лог обновления | B3: AllSheetsInThisWorkbook
A4: Титульный | B4: et_union_hor
A5: Форма 3.1 | B5: modProv
A6: Форма 3.1 (кварталы) | B6: modHTTP
A7: Форма 16 | B7: modReestr
A8: Субабоненты | B8: modfrmReestr
A9: Субабоненты (кварталы) | B9: modfrmRegion
A10: Комментарии | B10: REESTR_ORG
A11: Проверка | B11: modClassifierValidate
B12: modHyp
B13: modList00
B14: modList03
B15: modList04
B16: modInstruction
B17: modUpdTemplMain
B18: modfrmCheckUpdates
B19: modfrmDateChoose

Sheet et_union_hor (hidden)
A1: et_List04
F3: ="Заявленная мощность потребителей"&IF(regionException_flag = 1, ", в т.ч.","") -> Заявленная мощность потребителей | G3: МВт | W3: =SUM(K3:V3)/12 -> 0
A6: et_List05
F8: ="Заявленная мощность потребителей"&IF(regionException_flag = 1, ", в т.ч.","") -> Заявленная мощность потребителей | G8: МВт | H8: =(Субабоненты!K8+Субабоненты!L8+Субабоненты!M8)/3 -> 0 | I8: =(Субабоненты!N8+Субабоненты!O8+Субабоненты!P8)/3 -> 0 | J8: =(Субабоненты!Q8+Субабоненты!R8+Субабоненты!S8)/3 -> 0 | K8: =(Субабоненты!T8+Субабоненты!U8+Субабоненты!V8)/3 -> 0

Sheet modProv (hidden)

Sheet modHTTP (hidden)

Sheet modReestr (hidden)

Sheet modfrmReestr (hidden)

Sheet modfrmRegion (hidden)

Sheet modfrmAuthorization (hidden)

Sheet modfrmDateChoose (hidden)

Sheet REESTR_ORG (hidden)
A1: YEAR | B1: REGION_NAME | C1: ORG_NAME | D1: INN | E1: KPP | F1: DATE_BEGIN | G1: DATE_END | H1: LAST_YEAR
A2: 1 | B2: Приморский край | C2: АО " Находкинский морской торговый порт" | D2: 2508001449 | E2: 250801001
A3: 2 | B3: Приморский край | C3: АО "Арсеньевэлектросервис" | D3: 2501010388 | E3: 250101001
A4: 3 | B4: Приморский край | C4: АО "Восточный Порт" | D4: 2508001544 | E4: 250801001
A5: 4 | B5: Приморский край | C5: АО "ДРСК" филиал "Приморские электрические сети" | D5: 2801108200 | E5: 253731001
A6: 5 | B6: Приморский край | C6: АО "Дальневосточная ресурсоснабжающая компания" | D6: 2531006580 | E6: 253101001
A7: 6 | B7: Приморский край | C7: АО "Кавалеровская электросеть" | D7: 2515006938 | E7: 251501001
A8: 7 | B8: Приморский край | C8: АО "Коммунэлектросервис" | D8: 2505010540 | E8: 250501001
A9: 8 | B9: Приморский край | C9: АО "МАПЭ" | D9: 2520000498 | E9: 252001001
A10: 9 | B10: Приморский край | C10: АО "Спасcкцемент" | D10: 2510001238 | E10: 251001001
A11: 10 | B11: Приморский край | C11: АО "Спасскэлектросеть" | D11: 2510003066 | E11: 251001001
A12: 11 | B12: Приморский край | C12: АО «Электробытсервис» | D12: 2525007560 | E12: 252501001
A13: 12 | B13: Приморский край | C13: Дальневосточная дирекция по энергообеспечению – СП Трансэнерго - филиала ОАО "РЖД" | D13: 7708503727 | E13: 272145007
A14: 13 | B14: Приморский край | C14: МУП "Уссурийск-Электросеть" УГО | D14: 2511002019 | E14: 251101001
A15: 14 | B15: Приморский край | C15: МУПВ "ВПЭС" | D15: 2504000684 | E15: 254250001
A16: 15 | B16: Приморский край | C16: ООО "Горэлектросеть" | D16: 2543105000 | E16: 254301001 | F16: 01-01-2018 00:00:00
A17: 16 | B17: Приморский край | C17: ООО "Дальневосточные электрические сети" | D17: 2543118351 | E17: 254301001 | F17: 01-01-2019 00:00:00
A18: 17 | B18: Приморский край | C18: ООО "Дальнереченская энергосетевая компания" | D18: 2540231856 | E18: 254001001 | F18: 01-01-2019 00:00:00
A19: 18 | B19: Приморский край | C19: ООО "Инфраструктура" | D19: 2509082391 | E19: 250901001
A20: 19 | B20: Приморский край | C20: ООО "Кировская электросеть" | D20: 2516606166 | E20: 251601001
A21: 20 | B21: Приморский край | C21: ООО "Коммунальные сети" | D21: 2507228334 | E21: 250701001
A22: 21 | B22: Приморский край | C22: ООО "Приморский лесокомбинат" | D22: 2506006716 | E22: 250601001
A23: 22 | B23: Приморский край | C23: ООО "Промышленные энергосети Приморского края" | D23: 2536285810 | E23: 253601001 | F23: 01-01-2017 00:00:00
A24: 23 | B24: Приморский край | C24: ООО "Распределительные энергетические сети" | D24: 2503027852 | E24: 250301001
A25: 24 | B25: Приморский край | C25: ООО "Спасскэлектроконтроль" | D25: 2510007328 | E25: 251001001
A26: 25 | B26: Приморский край | C26: ООО "Стройтехэнерго" | D26: 2521013796 | E26: 252101001 | F26: 01-01-2019 00:00:00
A27: 26 | B27: Приморский край | C27: ООО "Территориальная энергосетевая компания" | D27: 2508113752 | E27: 250801001
A28: 27 | B28: Приморский край | C28: ООО "УК ПВЭСиК" | D28: 2526007193 | E28: 252601001
A29: 28 | B29: Приморский край | C29: ООО "Энергетические сети Преображения" | D29: 2518117509 | E29: 251801001
A30: 29 | B30: Приморский край | C30: ООО "Энергия" | D30: 2533008938 | E30: 253301001
A31: 30 | B31: Приморский край | C31: ООО «АЭСК» | D31: 2502046690 | E31: 250201001
A32: 31 | B32: Приморский край | C32: Октябрьское районное муниципальное унитарное предприятие электрических сетей | D32: 2522042180 | E32: 252201001
A33: 32 | B33: Приморский край | C33: ПАО "Аскольд" | D33: 2501001009 | E33: 250101001 | F33: 01-01-2017 00:00:00
A34: 33 | B34: Приморский край | C34: Филиал "Приморский" АО "Оборонэнерго" | D34: 7704726225 | E34: 253643001
A35: 34 | B35: Приморский край | C35: Хорольское муниципальное унитарное предприятие электрических сетей | D35: 2532002210 | E35: 253201001

Sheet modClassifierValidate (hidden)

Sheet modHyp (hidden)

Sheet modList00 (hidden)

Sheet modList03 (hidden)

Sheet modList04 (hidden)

Sheet modInstruction (hidden)

Sheet modUpdTemplMain (hidden)

Sheet modfrmCheckUpdates (hidden)
